bitfinex/quotes_BTCUSD_20250403
["timestamp","ask_amount","ask_price","bid_price","bid_amount"]
[1743692857155,0.258248,81317.0,81316.0,8e-05]
[1743692857874,0.16324,81322.0,81317.0,0.005]
[1743692858095,0.16324,81322.0,81316.0,0.00012]
[1743692858096,0.012296,81326.0,81320.0,0.005]
[1743692858324,0.25823,81323.0,81320.0,0.005]
[1743692859006,0.245951,81317.0,81316.0,0.0002]
[1743692859233,0.012296,81325.0,81317.0,0.017]
[1743692859469,0.245927,81325.0,81317.0,0.022]
[1743692859702,0.258225,81325.0,81321.0,0.017]
[1743692859950,0.012297,81317.0,81316.0,0.0002]
[1743692860592,0.012257,81317.0,81316.0,0.0172]
[1743692861023,1.06248,81331.0,81320.0,0.005]
[1743692861245,0.245919,81328.0,81323.0,0.005]
[1743692861471,0.258214,81328.0,81323.0,0.005]
[1743692861712,1.06248,81331.0,81323.0,0.005]
[1743692861927,1.308388,81331.0,81330.0,0.017]
[1743692862154,1.06248,81331.0,81330.0,0.017]
[1743692862382,1.06248,81331.0,81330.0,0.022]
[1743692862606,0.16276,81336.0,81335.0,0.017]
[1743692862831,0.012292,81350.0,81340.0,0.017]
[1743692863055,0.012292,81350.0,81338.0,0.005]
[1743692863056,0.012293,81346.0,81344.0,0.017]
[1743692863279,0.245862,81347.0,81327.0,0.3873]
[1743692863280,0.258193,81335.0,81330.0,0.017]
[1743692863499,0.012295,81329.0,81327.0,0.0473]
[1743692863740,0.258209,81329.0,81327.0,0.0473]
[1743692863917,0.012295,81328.0,81327.0,0.0643]
[1743692864162,0.012295,81328.0,81327.0,0.0473]
[1743692864376,0.245908,81331.0,81330.0,0.005]
[1743692864592,0.012295,81331.0,81330.0,0.005]
[1743692864810,0.245908,81331.0,81330.0,0.005]
[1743692865539,0.245883,81340.0,81330.0,0.005]
[1743692865756,0.245872,81344.0,81327.0,0.0473]
[1743692865757,0.258164,81344.0,81338.0,0.005]
[1743692865898,0.012293,81343.0,81338.0,0.005]
[1743692866134,0.258167,81343.0,81338.0,0.005]
[1743692866322,0.245877,81342.0,81338.0,0.005]
[1743692866647,0.245881,81341.0,81338.0,0.005]
[1743692866871,0.012295,81331.0,81330.0,4e-05]
[1743692867078,0.258203,81331.0,81330.0,4e-05]
[1743692867446,0.258203,81331.0,81330.0,8e-05]
[1743692867647,0.258203,81331.0,81330.0,0.00012]
[1743692867874,0.2582,81332.0,81330.0,0.00012]
[1743692868082,0.012295,81333.0,81330.0,0.00012]
[1743692868083,0.245904,81333.0,81330.0,0.00012]
[1743692868436,0.258199,81333.0,81330.0,0.00012]
[1743692868665,0.012294,81334.0,81332.0,0.005]
[1743692868896,0.245897,81335.0,81332.0,0.005]
[1743692869396,0.012294,81336.0,81330.0,0.00012]
[1743692869397,0.245907,81332.0,81330.0,0.00012]
[1743692869634,0.258199,81334.0,81330.0,0.00012]
[1743692869862,0.245907,81332.0,81330.0,0.00012]
[1743692870077,0.258198,81333.0,81330.0,0.00012]
[1743692870078,0.245903,81333.0,81330.0,0.00012]
[1743692870275,0.245906,81332.0,81330.0,0.00012]
[1743692870536,0.012295,81331.0,81330.0,0.00012]
[1743692871004,0.21388717,81331.0,81330.0,0.00012]
[1743692871242,0.13519797,81331.0,81330.0,0.00012]
[1743692871957,0.258225,81324.0,81316.0,0.0002]
[1743692872186,0.258245,81318.0,81316.0,0.0002]
[1743692872410,0.38114797,81318.0,81316.0,0.0002]
[1743692875197,0.54166797,81318.0,81316.0,0.0002]
[1743692876415,0.88166797,81318.0,81316.0,0.0002]
[1743692876651,0.89620882,81318.0,81316.0,0.0002]
[1743692877409,0.89720882,81318.0,81316.0,0.0002]
[1743692877631,0.89920882,81318.0,81316.0,0.0002]
[1743692877872,0.89920882,81318.0,81317.0,0.0002083]
[1743692877873,0.88166797,81318.0,81317.0,0.0002083]
[1743692878127,0.88366797,81318.0,81317.0,0.0002083]
[1743692878336,0.88666797,81318.0,81317.0,0.0002083]
[1743692878815,0.38614797,81318.0,81317.0,0.0002083]
[1743692879044,0.54594797,81318.0,81317.0,0.0002083]
[1743692879922,0.54294797,81318.0,81317.0,0.0002483]
[1743692880290,0.54394797,81318.0,81317.0,0.0002483]
[1743692880554,0.54394797,81318.0,81317.0,0.0002883]
[1743692880955,0.54094797,81318.0,81317.0,0.0003283]
[1743692881126,0.54294797,81318.0,81317.0,0.0003283]
[1743692882485,0.258248,81317.0,81316.0,3e-07]
[1743692882715,0.38115097,81317.0,81316.0,3e-07]
[1743692883811,0.38215097,81317.0,81316.0,3e-07]
[1743692884051,0.38315097,81317.0,81316.0,3e-07]
[1743692884512,0.002,81317.0,81316.0,0.0220003]
[1743692884981,0.002,81317.0,81316.0,0.0680003]
[1743692885211,0.002,81317.0,81316.0,0.07480033]
[1743692885445,0.002,81317.0,81316.0,0.13394053]
[1743692885689,0.002,81317.0,81316.0,0.8550945]
[1743692885982,0.002,81317.0,81316.0,0.5968435]
[1743692886242,0.0003366,81340.0,81333.0,0.022]
[1743692886686,0.0003366,81340.0,81339.0,0.620178]
[1743692886948,0.036881,81375.0,81358.0,0.267827]
[1743692887145,0.02715339,81388.0,81387.0,0.005]
[1743692887367,0.02715339,81388.0,81387.0,0.14490297]
[1743692887585,0.02715339,81388.0,81387.0,0.03673603]
[1743692887814,0.02715339,81388.0,81387.0,0.022]
[1743692888540,0.245703,81399.0,81388.0,0.022]
[1743692888763,0.249733,81389.0,81388.0,0.022]
[1743692888984,0.004,81389.0,81388.0,0.022]
[1743692889218,0.004,81389.0,81388.0,0.28227685]
[1743692889446,0.004,81389.0,81388.0,0.62257151]
[1743692889677,0.004,81389.0,81388.0,0.60803066]
[1743692889931,0.004,81389.0,81388.0,0.26803066]
[1743692890153,0.004,81389.0,81388.0,0.09522769]
[1743692890398,0.004,81389.0,81388.0,0.18990297]
[1743692890646,0.0043366,81389.0,81388.0,0.19235997]
[1743692890918,0.0043366,81389.0,81388.0,0.19090297]
[1743692891151,0.0043366,81389.0,81388.0,0.018]
[1743692891373,0.0166226,81389.0,81388.0,0.001]
[1743692893311,0.258022,81388.0,81387.0,0.01708]
[1743692893544,0.245736,81388.0,81387.0,0.01708]
[1743692893761,0.258022,81388.0,81387.0,0.01708]
[1743692894234,0.72092497,81388.0,81387.0,8e-05]
[1743692894703,0.72092497,81388.0,81361.0,0.047]
[1743692894704,0.01229,81362.0,81361.0,0.005]
[1743692894947,0.368651,81378.0,81370.0,0.017]
[1743692894948,0.245787,81371.0,81370.0,0.017]
[1743692895175,0.245796,81368.0,81367.0,0.005]
[1743692895394,0.258085,81368.0,81367.0,0.022]
[1743692896067,0.258085,81368.0,81362.0,0.005]
[1743692896068,0.258095,81365.0,81362.0,0.005]
[1743692896342,0.245811,81363.0,81362.0,0.022]
[1743692896578,0.598022,81388.0,81387.0,0.001]
[1743692896793,0.88084497,81388.0,81387.0,0.001]
[1743692897014,0.258073,81372.0,81371.0,0.017]
[1743692897446,0.245787,81371.0,81368.0,0.017]
[1743692897691,0.245802,81366.0,81365.0,0.022]
[1743692898189,0.245802,81366.0,81365.0,0.017]
[1743692898328,0.245802,81366.0,81364.0,0.005]
[1743692898555,0.258073,81373.0,81368.0,0.005]
[1743692898754,0.258077,81371.0,81370.0,0.005]
[1743692898953,0.258077,81371.0,81348.0,0.047]
[1743692898954,0.012289,81368.0,81367.0,0.022]
[1743692899338,0.258082,81369.0,81367.0,0.022]
[1743692899554,0.012288,81379.0,81377.0,0.005]
[1743692899767,0.012289,81372.0,81371.0,0.005]
[1743692899951,0.245799,81367.0,81366.0,0.017]
[1743692900172,0.245799,81367.0,81366.0,0.022]
[1743692900804,0.245793,81369.0,81366.0,0.022]
[1743692901006,0.245793,81369.0,81368.0,0.017]
[1743692901217,0.012288,81374.0,81368.0,0.017]
[1743692901423,0.3443366,81389.0,81376.0,0.005]
[1743692901639,0.3443366,81389.0,81368.0,0.017]
[1743692901640,0.16016,81388.0,81381.0,0.005]
[1743692901912,0.012287,81384.0,81381.0,0.005]
[1743692902123,0.245752,81383.0,81381.0,0.005]
[1743692902335,0.258028,81387.0,81381.0,0.005]
[1743692902585,0.012284,81401.0,81388.0,0.005]
[1743692902821,0.012285,81396.0,81388.0,0.005]
[1743692903279,0.012285,81395.0,81388.0,0.005]
[1743692903514,0.012286,81392.0,81388.0,0.005]
[1743692903735,0.258004,81394.0,81388.0,0.005]
[1743692903945,0.245719,81394.0,81388.0,0.005]
[1743692904158,0.245706,81398.0,81388.0,0.022]
[1743692904384,0.16016,81403.0,81388.0,0.023]
[1743692904637,0.245706,81398.0,81388.0,0.023]
[1743692904891,0.245709,81397.0,81388.0,0.006]
[1743692905102,0.245709,81397.0,81388.0,0.023]
[1743692905337,0.245721,81393.0,81388.0,0.006]
[1743692905542,0.0166226,81389.0,81388.0,0.023]
[1743692906214,0.0166226,81389.0,81388.0,0.001]
[1743692906436,0.13952557,81389.0,81388.0,0.001]
[1743692907084,0.25806,81376.0,81375.0,0.005]
[1743692907348,0.25806,81376.0,81375.0,0.022]
[1743692907575,0.15988,81379.0,81376.0,0.005]
[1743692907801,0.15988,81379.0,81377.0,0.017]
[1743692908028,0.15988,81379.0,81378.0,0.005]
[1743692908250,0.245743,81386.0,81377.0,0.017]
[1743692908251,0.245742,81386.0,81385.0,0.005]
[1743692908498,0.15996,81386.0,81385.0,0.005]
[1743692908735,0.15996,81386.0,81385.0,0.01722639]
[1743692908736,0.245742,81386.0,81385.0,0.01722639]
[1743692909207,0.405579,81387.0,81385.0,0.01722639]
[1743692909426,0.15984,81387.0,81385.0,0.01722639]
[1743692909891,0.0166226,81389.0,81385.0,0.01722639]
[1743692909892,0.0043366,81389.0,81386.0,0.022]
[1743692910171,0.0043366,81389.0,81388.0,0.005]
[1743692910386,0.0043366,81389.0,81387.0,0.017]
[1743692910387,0.258022,81388.0,81387.0,0.022]
[1743692911086,0.0043366,81389.0,81388.0,0.005]
[1743692911318,0.2500696,81389.0,81388.0,0.005]
[1743692911840,0.2623556,81389.0,81388.0,0.005]
[1743692912121,0.258022,81388.0,81387.0,0.022]
[1743692912392,0.258025,81387.0,81386.0,0.005]
[1743692912950,0.258025,81387.0,81385.0,0.01230639]
[1743692912951,0.258029,81386.0,81385.0,0.01230639]
[1743692914550,0.38093197,81386.0,81385.0,0.01230639]
[1743692915005,0.258029,81386.0,81385.0,0.01330639]
[1743692918145,0.82580353,81386.0,81385.0,0.00108]
[1743692918364,0.72093197,81386.0,81385.0,0.00108]
[1743692919321,0.598057,81377.0,81376.0,0.0001682]
[1743692919535,0.96683887,81377.0,81376.0,2e-07]
[1743692919739,0.98137972,81377.0,81376.0,2e-07]
[1743692919966,0.89454082,81377.0,81376.0,2e-07]
[1743692920805,0.89754082,81377.0,81376.0,2e-07]
[1743692921653,0.89754082,81377.0,81376.0,4.02e-05]
[1743692921870,0.89954082,81377.0,81376.0,4.02e-05]
[1743692922091,1.0224385,81377.0,81376.0,4.02e-05]
[1743692922550,1.0224385,81377.0,81348.0,0.01222639]
[1743692922551,0.598098,81364.0,81363.0,4e-07]
[1743692922855,1.78296097,81364.0,81363.0,4e-07]
[1743692923536,1.660058,81364.0,81363.0,4e-07]
[1743692923757,1.660058,81364.0,81363.0,0.0050004]
[1743692923758,1.23329,81364.0,81363.0,0.0050004]
[1743692923974,1.322058,81364.0,81363.0,0.0050004]
[1743692924184,1.06196,81364.0,81363.0,0.0050004]
[1743692924395,1.307768,81364.0,81363.0,0.0050004]
[1743692924878,1.310768,81364.0,81363.0,0.0050004]
[1743692925347,0.15904,81366.0,81363.0,0.0050004]
[1743692925569,0.15904,81366.0,81365.0,0.022]
[1743692925791,0.15904,81376.0,81375.0,0.005]
[1743692926022,0.15904,81376.0,81375.0,0.01722639]
[1743692926835,0.245758,81381.0,81380.0,0.005]
[1743692926836,0.24576,81381.0,81380.0,0.005]
[1743692927060,0.404791,81383.0,81382.0,0.005]
[1743692927283,0.417078,81383.0,81382.0,0.005]
[1743692927510,1.22108,81386.0,81385.0,0.022]
[1743692927737,1.22108,81386.0,81385.0,0.03422639]
[1743692927953,1.22108,81386.0,81385.0,0.04223903]
[1743692928203,0.0043366,81389.0,81386.0,0.017]
[1743692928658,0.0043366,81389.0,81385.0,0.02523903]
[1743692928659,0.0166226,81389.0,81388.0,0.022]
[1743692928898,0.0166226,81389.0,81388.0,0.005]
[1743692929133,0.258029,81386.0,81385.0,0.01226639]
[1743692929565,0.258029,81386.0,81385.0,0.01726639]
[1743692929994,0.258022,81388.0,81385.0,0.01726639]
[1743692929995,0.258022,81388.0,81387.0,0.005]
[1743692931084,0.2623566,81389.0,81388.0,0.022]
[1743692931085,0.0043366,81389.0,81388.0,0.022]
[1743692931323,0.2623556,81389.0,81388.0,0.005]
[1743692932302,0.2623556,81389.0,81388.0,0.022]
[1743692932542,0.2623556,81389.0,81388.0,0.005]
[1743692933800,0.0043366,81389.0,81388.0,0.022]
[1743692934052,0.2500696,81389.0,81388.0,0.022]
[1743692934758,0.0043366,81389.0,81388.0,0.022]
[1743692935476,0.0043366,81389.0,81388.0,0.02204]
[1743692936117,0.2623556,81389.0,81388.0,0.02204]
[1743692937279,0.6023556,81389.0,81388.0,4e-05]
[1743692937543,0.7613556,81389.0,81388.0,4e-05]
[1743692938263,0.6023556,81389.0,81388.0,4e-05]
[1743692938502,0.7613556,81389.0,81388.0,4e-05]
[1743692939452,0.4213556,81389.0,81388.0,4e-05]
[1743692940186,0.258041,81382.0,81381.0,5.9e-07]
[1743692940469,0.258041,81382.0,81363.0,4.04e-05]
[1743692940470,1.53924382,81382.0,81363.0,4.04e-05]
[1743692940714,0.598098,81364.0,81363.0,4.04e-05]
[1743692940942,0.88000097,81364.0,81363.0,4.04e-05]
[1743692941685,0.757098,81364.0,81363.0,4.04e-05]
[1743692942668,0.88000097,81364.0,81363.0,4.04e-05]
[1743692943139,0.598098,81364.0,81363.0,4.04e-05]
[1743692943374,0.88004097,81364.0,81363.0,4.04e-05]
[1743692947612,0.99018182,81364.0,81363.0,4.04e-05]
[1743692947858,0.258219,81326.0,81325.0,0.005]
[1743692948110,0.258225,81324.0,81323.0,0.022]
[1743692948354,0.245899,81335.0,81334.0,0.005]
[1743692948585,0.258185,81337.0,81336.0,0.005]
[1743692948801,0.15904,81339.0,81338.0,0.005]
[1743692949548,0.171334,81339.0,81338.0,0.022]
[1743692950069,0.258181,81338.0,81337.0,0.022]
[1743692950302,0.171334,81339.0,81338.0,0.017]
[1743692950535,0.245887,81338.0,81337.0,0.022]
[1743692950770,0.258181,81338.0,81337.0,0.022]
[1743692951022,0.245857,81348.0,81347.0,0.005]
[1743692951262,0.245857,81348.0,81334.0,0.0451]
[1743692951263,0.012292,81348.0,81346.0,0.005]
[1743692951495,0.012293,81344.0,81343.0,0.005]
[1743692951739,0.012293,81344.0,81343.0,0.022]
[1743692951977,0.258159,81345.0,81344.0,0.022]
[1743692952234,0.012293,81344.0,81343.0,0.005]
[1743692952493,0.012293,81342.0,81341.0,0.005]
[1743692952715,0.258168,81342.0,81341.0,0.005]
[1743692952947,0.245856,81349.0,81348.0,0.005]
[1743692953414,0.245847,81352.0,81351.0,0.005]
[1743692953723,0.245847,81352.0,81351.0,0.022]
[1743692953964,0.258181,81338.0,81337.0,0.000168]
[1743692954196,0.88016397,81338.0,81337.0,0.000168]
[1743692955015,0.34,81338.0,81337.0,0.000168]
[1743692955224,0.598181,81338.0,81337.0,0.000168]
[1743692955434,0.72108397,81338.0,81337.0,0.000168]
[1743692955850,0.258181,81338.0,81337.0,0.000168]
[1743692956059,0.246887,81338.0,81337.0,0.000168]
[1743692956272,0.260181,81338.0,81337.0,0.000168]
[1743692956491,0.259181,81338.0,81337.0,0.000168]
[1743692956698,0.246887,81338.0,81337.0,0.000168]
[1743692956920,0.245887,81338.0,81337.0,0.000168]
[1743692957782,0.258181,81338.0,81337.0,0.000168]
[1743692958207,0.012293,81342.0,81337.0,0.000168]
[1743692958401,0.245887,81338.0,81337.0,0.000168]
[1743692958845,0.404949,81345.0,81337.0,0.000168]
[1743692959054,0.245885,81339.0,81337.0,0.000168]
[1743692959293,0.245887,81338.0,81337.0,0.000168]
[1743692959529,0.258181,81338.0,81337.0,0.000168]
[1743692960415,0.258181,81338.0,81337.0,0.000208]
[1743692962362,0.38108397,81338.0,81337.0,0.000208]
[1743692962595,0.81205687,81338.0,81337.0,0.000208]
[1743692962819,0.72108397,81338.0,81337.0,0.000208]
[1743692963750,0.72108397,81338.0,81301.0,0.004]
[1743692963751,0.598248,81317.0,81301.0,0.004]
[1743692963995,0.88023097,81317.0,81301.0,0.004]
[1743692966334,0.88023097,81317.0,81316.0,0.0002486]
[1743692967012,0.757328,81317.0,81316.0,0.0002486]
[1743692967496,0.405031,81317.0,81316.0,0.0002486]
[1743692967959,0.15908,81317.0,81316.0,0.0002486]
[1743692968440,0.245939,81321.0,81316.0,0.0002486]
[1743692968658,0.245942,81320.0,81316.0,0.0002486]
[1743692968879,0.245939,81321.0,81316.0,0.0002486]
[1743692969124,0.258248,81317.0,81316.0,0.0002486]
[1743692969832,0.24293099,81318.0,81316.0,0.0002486]
[1743692970075,0.258248,81317.0,81316.0,0.0002486]
[1743692970968,0.38115097,81317.0,81316.0,0.0002486]
[1743692971174,0.72115097,81317.0,81316.0,0.0002486]
[1743692972028,0.598248,81317.0,81316.0,0.0002486]
[1743692972443,0.72115097,81317.0,81316.0,0.0002486]
[1743692973549,0.79918062,81317.0,81316.0,6e-07]
[1743692973976,0.95830062,81317.0,81316.0,6e-07]
[1743692974173,0.88027097,81317.0,81316.0,6e-07]
[1743692974832,0.54027097,81317.0,81316.0,6e-07]
[1743692975249,0.88027097,81317.0,81316.0,6e-07]
[1743692975988,0.88519197,81317.0,81316.0,6e-07]
[1743692976556,0.88519197,81317.0,81316.0,0.0001688]
[1743692977969,0.88519197,81317.0,81316.0,8e-07]
[1743692978193,1.00808965,81317.0,81316.0,8e-07]
[1743692978430,0.88519197,81317.0,81316.0,4.08e-05]
[1743692979577,0.88519197,81317.0,81316.0,8.08e-05]
[1743692980020,0.88519197,81317.0,81316.0,0.0001208]
[1743692980493,0.88519197,81317.0,81316.0,0.0001608]
[1743692980718,0.88519197,81317.0,81316.0,0.0002008]
[1743692981143,0.88519197,81317.0,81316.0,0.0002408]
[1743692982277,1.00808965,81317.0,81316.0,0.0002408]
[1743692982508,0.88519197,81317.0,81316.0,8e-07]
[1743692982730,0.72607197,81317.0,81316.0,8e-07]
[1743692982963,0.88519197,81317.0,81316.0,8e-07]
[1743692983183,0.72607197,81317.0,81316.0,8e-07]
[1743692983397,0.88027097,81317.0,81316.0,8e-07]
[1743692983593,0.88519097,81317.0,81316.0,8e-07]
[1743692983847,0.263168,81317.0,81316.0,8e-07]
[1743692984092,0.417368,81317.0,81316.0,8e-07]
[1743692984847,0.757368,81317.0,81316.0,8e-07]
[1743692985566,0.15912,81317.0,81316.0,8e-07]
[1743692985781,0.417368,81317.0,81316.0,8e-07]
[1743692986444,0.88027097,81317.0,81316.0,8e-07]
[1743692990207,0.598295,81302.0,81301.0,0.004]
[1743692990451,0.88031797,81302.0,81301.0,0.004]
[1743692991192,0.88977199,81302.0,81301.0,0.004]
[1743692991941,0.88734291,81302.0,81301.0,0.004]
[1743692992193,0.75498592,81302.0,81301.0,0.004]
[1743692993746,0.745116,81302.0,81301.0,0.004]
[1743692993993,0.245994,81303.0,81301.0,0.004]
[1743692993994,0.245993,81303.0,81301.0,0.004]
[1743692994233,0.245985,81306.0,81302.0,0.0463]
[1743692994477,0.245989,81305.0,81302.0,0.0463]
[1743692994715,0.245993,81303.0,81302.0,0.0463]
[1743692995738,0.012296,81322.0,81302.0,0.21610297]
[1743692995983,0.15912,81320.0,81303.0,0.02325712]
[1743692996203,0.15912,81323.0,81304.0,0.01475869]
[1743692996415,0.012296,81322.0,81305.0,0.12290297]
[1743692996625,0.245939,81321.0,81305.0,0.12290297]
[1743692996862,0.012296,81324.0,81305.0,0.12290297]
[1743692997083,1.467449,81325.0,81307.0,0.012299]
[1743692997317,0.245917,81329.0,81311.0,0.012298]
[1743692997537,0.00934741,81341.0,81317.0,0.0491]
[1743692997538,0.15908,81334.0,81317.0,0.0491]
[1743692997750,0.15908,81334.0,81317.0,0.061397]
[1743692997963,0.245904,81333.0,81317.0,0.061397]
[1743692998215,0.012294,81336.0,81317.0,0.17446234]
[1743692998422,0.245905,81332.0,81317.0,0.17200297]
[1743692998642,0.012294,81338.0,81317.0,0.17200297]
[1743692998643,0.404965,81339.0,81317.0,0.17200297]
[1743692998859,0.34,81341.0,81323.0,0.012296]
[1743692999078,0.34,81338.0,81324.0,0.40059537]
[1743692999297,0.34,81338.0,81324.0,0.15466637]
[1743692999534,0.245882,81340.0,81324.0,0.15466637]
[1743692999535,0.245881,81340.0,81324.0,0.15466637]
[1743692999746,0.15908,81349.0,81329.0,0.012295]
[1743692999960,0.15908,81349.0,81333.0,0.0497]
[1743692999961,0.245855,81349.0,81333.0,0.0497]
[1743693000196,0.245855,81349.0,81334.0,0.12290297]
[1743693000421,0.0003362,81350.0,81334.0,0.38109597]
[1743693000647,0.245858,81348.0,81335.0,0.07096308]
[1743693000833,0.245857,81348.0,81336.0,0.12290297]
[1743693001155,0.245857,81348.0,81335.0,0.07096308]
[1743693001156,0.245899,81334.0,81333.0,0.0497]
[1743693001368,0.245899,81334.0,81333.0,0.05673308]
[1743693001589,0.258178,81340.0,81333.0,0.05673308]
[1743693001590,0.245891,81337.0,81333.0,0.05673308]
[1743693001809,0.25817,81342.0,81333.0,0.05673308]
[1743693002020,0.245894,81336.0,81333.0,0.05673308]
[1743693002274,0.012292,81349.0,81333.0,0.05673308]
[1743693002512,0.245861,81347.0,81334.0,0.12290297]
[1743693002741,0.012291,81354.0,81334.0,0.12290297]
[1743693002742,0.15908,81355.0,81337.0,0.012294]
[1743693002972,0.15908,81355.0,81342.0,0.245874]
[1743693003223,0.15908,81355.0,81342.0,0.12290297]
[1743693003709,0.404917,81355.0,81342.0,0.12290297]
[1743693003947,0.245845,81352.0,81342.0,0.12290297]
[1743693004196,0.2461892,81350.0,81342.0,0.12290297]
[1743693004434,0.0003362,81350.0,81342.0,0.12290297]
[1743693004719,0.245866,81345.0,81343.0,0.0122903]
[1743693004951,0.245872,81343.0,81342.0,4e-05]
[1743693005198,0.258165,81343.0,81342.0,4e-05]
[1743693005435,0.245866,81345.0,81342.0,4e-05]
[1743693005436,0.245869,81345.0,81342.0,4e-05]
[1743693005693,0.245869,81345.0,81342.0,8e-05]
[1743693005940,0.0003362,81350.0,81343.0,0.12290297]
[1743693006184,0.0003362,81350.0,81344.0,0.12615522]
[1743693006440,0.0003362,81350.0,81347.0,0.24586]
[1743693006638,0.0003362,81350.0,81348.0,0.12290297]
[1743693007378,0.0003362,81350.0,81344.0,0.0487]
[1743693007598,0.012292,81352.0,81344.0,0.0487]
[1743693007808,0.012292,81352.0,81342.0,8e-05]
[1743693007809,0.258165,81343.0,81342.0,8e-05]
[1743693009099,0.34,81348.0,81342.0,8e-05]
[1743693009310,0.245861,81347.0,81342.0,8e-05]
[1743693009549,0.34,81348.0,81342.0,8e-05]
[1743693009818,0.245846,81352.0,81342.0,8e-05]
[1743693010037,0.34,81360.0,81343.0,0.12290297]
[1743693010252,0.34,81360.0,81345.0,0.245866]
[1743693010482,0.159,81361.0,81346.0,0.12290297]
[1743693010696,0.245818,81361.0,81346.0,0.12290297]
[1743693010909,0.01229,81365.0,81346.0,0.12290297]
[1743693010910,0.245801,81367.0,81348.0,0.245857]
[1743693011160,0.245806,81365.0,81349.0,0.19884518]
[1743693011398,0.245796,81368.0,81350.0,0.245848]
[1743693011629,1.22176,81372.0,81356.0,0.245831]
[1743693011871,1.22176,81372.0,81355.0,0.245836]
[1743693012128,0.159,81378.0,81358.0,0.012291]
[1743693012406,0.245775,81376.0,81359.0,0.245823]
[1743693012645,0.245776,81375.0,81358.0,0.38101997]
[1743693012881,0.012288,81377.0,81359.0,0.31219536]
[1743693013082,0.245775,81375.0,81359.0,0.06637236]
[1743693013317,0.404766,81378.0,81361.0,0.245818]
[1743693013792,0.404767,81378.0,81362.0,0.245813]
[1743693014019,0.404767,81378.0,81363.0,0.05762514]
[1743693014262,0.246096,81381.0,81363.0,0.05762514]
[1743693014263,0.000336,81381.0,81380.0,0.24576]
[1743693014485,0.000336,81381.0,81373.0,0.245779]
[1743693014710,0.000336,81381.0,81372.0,0.012289]
[1743693014711,0.000336,81381.0,81374.0,0.245778]
[1743693014943,0.000336,81381.0,81375.0,0.245775]
[1743693015180,0.000336,81381.0,81380.0,0.24576]
[1743693015414,0.000336,81381.0,81380.0,0.38095097]
[1743693017318,0.000336,81381.0,81380.0,0.95067371]
[1743693017552,0.0033366,81389.0,81388.0,0.598022]
[1743693017768,0.0033366,81389.0,81388.0,0.20973677]
[1743693017990,0.0033366,81389.0,81381.0,0.012287]
[1743693018221,0.0033366,81389.0,81386.0,0.245741]
[1743693018436,0.0033366,81389.0,81387.0,0.12290297]
[1743693018879,0.0033366,81389.0,81388.0,0.012286]
[1743693019101,0.0033366,81389.0,81388.0,0.13518897]
[1743693019321,0.0033366,81389.0,81388.0,0.22611537]
[1743693019750,0.0033366,81389.0,81388.0,0.23379586]
[1743693020228,0.0033366,81389.0,81388.0,0.22150986]
[1743693020452,0.0033366,81389.0,81388.0,0.09860689]
[1743693020674,0.0033366,81389.0,81388.0,0.00768049]
[1743693021345,0.0033366,81389.0,81387.0,4e-05]
[1743693021817,0.0033366,81389.0,81388.0,0.12290297]
[1743693022714,0.0033366,81389.0,81387.0,4e-05]
[1743693022936,0.012286,81388.0,81387.0,4e-05]
[1743693023165,0.352286,81388.0,81387.0,4e-05]
[1743693023395,0.0033366,81389.0,81387.0,4e-05]
[1743693023622,0.245734,81390.0,81387.0,4e-05]
[1743693023623,0.0070906,81390.0,81387.0,4e-05]
[1743693023847,0.012286,81388.0,81387.0,4e-05]
[1743693024749,0.258022,81388.0,81387.0,4e-05]
[1743693025759,0.598022,81388.0,81387.0,4e-05]
[1743693027644,0.598022,81388.0,81387.0,0.000208]
[1743693028084,0.756902,81388.0,81387.0,0.000208]
[1743693029407,0.404616,81388.0,81387.0,0.000208]
[1743693029588,0.15888,81388.0,81387.0,0.000208]
[1743693030038,0.24607,81389.0,81387.0,0.000208]
[1743693030039,0.000336,81389.0,81387.0,0.00789036]
[1743693030252,0.000336,81389.0,81388.0,0.303122]
[1743693030472,0.000336,81389.0,81388.0,0.25521021]
[1743693031149,0.000336,81389.0,81388.0,0.08720724]
[1743693031331,0.000336,81389.0,81387.0,0.00789036]
[1743693031812,0.417235,81389.0,81388.0,0.01997195]
[1743693032713,0.417235,81389.0,81388.0,0.00768236]
[1743693033442,0.415637,81389.0,81388.0,0.00768236]
[1743693033886,0.415637,81389.0,81387.0,0.000208]
[1743693033887,0.258022,81388.0,81387.0,0.000208]
[1743693034121,0.157618,81389.0,81387.0,0.000208]
[1743693034635,0.38092497,81388.0,81387.0,0.000208]
[1743693034874,0.012286,81388.0,81387.0,0.000208]
[1743693035099,0.258022,81388.0,81387.0,0.000208]
[1743693035971,1.01843197,81388.0,81387.0,1e-06]
[1743693036180,1.03297282,81388.0,81387.0,1e-06]
[1743693036403,0.93980582,81388.0,81387.0,1e-06]
[1743693036609,0.61258485,81381.0,81380.0,4e-05]
[1743693036824,0.73548782,81381.0,81380.0,4e-05]
[1743693037048,0.72094697,81381.0,81380.0,4e-05]
[1743693037478,0.36865997,81381.0,81380.0,4e-05]
[1743693037724,0.38094697,81381.0,81380.0,4e-05]
[1743693037944,0.53978697,81381.0,81380.0,4e-05]
[1743693038367,0.258112,81360.0,81359.0,4e-05]
[1743693038576,0.416952,81360.0,81359.0,4e-05]
[1743693038792,0.404661,81360.0,81359.0,4e-05]
[1743693039010,0.416952,81360.0,81359.0,4e-05]
[1743693040750,0.15884,81360.0,81359.0,4e-05]
[1743693040953,0.01229,81362.0,81359.0,4e-05]
[1743693041161,0.404658,81361.0,81359.0,4e-05]
[1743693041992,0.258112,81360.0,81359.0,4e-05]
[1743693042207,0.245814,81363.0,81359.0,4e-05]